bitfinex/quotes_ETHUSD_20250529
["timestamp","ask_amount","ask_price","bid_price","bid_amount"]
[1748517977997,4.732,2727.6,2727.1,0.05]
[1748517978444,4.732,2727.6,2727.1,3.71682063]
[1748517978593,4.732,2727.6,2727.2,3.66674908]
[1748517978801,4.732,2727.6,2727.2,3.66675208]
[1748517979435,4.732,2727.6,2727.1,3.71682902]
[1748517979948,4.731,2727.5,2727.1,8.97158606]
[1748517980294,4.731,2727.5,2727.1,0.05]
[1748517980499,1.1239,2727.4,2727.1,0.05]
[1748517983328,3.66676444,2727.2,2727.1,0.05]
[1748517983530,1.1239,2727.4,2727.1,0.05]
[1748517983531,1.0487,2727.4,2727.1,0.05]
[1748517983719,4.61131762,2727.3,2727.1,0.05]
[1748517984300,0.94461607,2727.3,2727.1,0.05]
[1748517984471,4.611268,2727.3,2727.1,0.05]
[1748517984640,0.94461607,2727.3,2727.1,0.05]
[1748517985272,4.61127301,2727.3,2727.1,0.05]
[1748517985476,4.23276174,2727.2,2727.1,0.05]
[1748517985680,1.5844973,2727.2,2727.1,0.05]
[1748517986976,5.25126174,2727.2,2727.1,0.05]
[1748517988304,1.5844973,2727.2,2727.1,0.05]
[1748517988671,5.25126174,2727.2,2727.1,0.05]
[1748517988990,1.5844973,2727.2,2727.1,0.05]
[1748517989502,4.68526444,2727.2,2727.1,0.05]
[1748517990409,1.0185,2727.2,2727.1,0.05]
[1748517990611,4.68526444,2727.2,2727.1,0.05]
[1748517992519,4.68526444,2727.2,2726.1,0.05]
[1748517992520,4.75310945,2726.2,2726.1,0.05]
[1748517992679,9.9584204,2726.2,2726.1,0.05]
[1748518002510,9.9594204,2726.2,2726.1,0.05]
[1748518004261,10.5136204,2726.2,2726.1,0.05]
[1748518004558,1.0892,2726.0,2725.1,0.05]
[1748518004717,3.66934226,2725.3,2725.1,0.05]
[1748518004919,1.0892,2725.4,2725.1,0.05]
[1748518004920,8.40045545,2725.2,2725.1,0.05]
[1748518008049,4.731,2725.2,2725.1,0.05]
[1748518009066,4.75842424,2725.4,2725.1,0.05]
[1748518009255,4.731,2725.2,2725.1,0.05]
[1748518011435,3.66868184,2725.8,2725.1,0.05]
[1748518011436,1.0697,2726.6,2725.2,8.0]
[1748518011636,4.73,2726.5,2725.4,0.1439]
[1748518011862,1.0697,2726.1,2725.4,0.1439]
[1748518012050,3.66896973,2725.6,2725.2,0.1439]
[1748518012237,3.753,2725.5,2725.2,0.1439]
[1748518012444,3.753,2725.4,2725.2,0.1439]
[1748518012641,3.753,2725.4,2725.1,3.669522]
[1748518013469,3.753,2725.4,2725.0,3.66962716]
[1748518015160,3.753,2725.4,2724.9,13.66981575]
[1748518015372,3.753,2725.4,2725.0,3.66967359]
[1748518015554,3.753,2725.4,2724.9,3.66983133]
[1748518016172,4.59921727,2725.4,2724.7,10.0]
[1748518016377,4.59921727,2725.4,2724.7,3.67005318]
[1748518016670,8.26847071,2725.4,2724.8,3.66998655]
[1748518017257,4.59921727,2725.4,2724.8,3.66998655]
[1748518017457,4.59921727,2725.4,2724.9,3.66981975]
[1748518017662,4.59921727,2725.4,2724.8,3.66992734]
[1748518017839,8.26841618,2725.4,2724.8,3.66992734]
[1748518018255,4.59921727,2725.4,2724.8,3.66992734]
[1748518018790,4.59921727,2725.4,2724.8,11.66990495]
[1748518018959,4.59921727,2725.4,2724.6,0.14706661]
[1748518019144,4.59921727,2725.4,2724.8,3.66990495]
[1748518019777,8.26842085,2725.4,2724.8,3.66990495]
[1748518020381,8.26845232,2725.4,2724.8,3.66990495]
[1748518020564,7.42223505,2725.4,2724.6,4.83202377]
[1748518020879,7.42223505,2725.4,2724.7,3.67012882]
[1748518021286,7.42223505,2725.4,2724.8,3.66996516]
[1748518022511,3.753,2725.4,2724.8,3.66996516]
[1748518022967,7.42220374,2725.4,2724.8,3.66996516]
[1748518024486,3.753,2725.4,2724.9,3.66985219]
[1748518024692,7.4222034,2725.4,2724.8,3.66994848]
[1748518025450,3.753,2725.4,2724.9,3.66980581]
[1748518025654,3.753,2725.4,2724.8,3.66992547]
[1748518026063,7.42218758,2725.4,2724.7,13.67008406]
[1748518026264,7.42218758,2725.4,2724.8,3.6699]
[1748518026460,3.753,2725.3,2724.8,3.66989929]
[1748518027610,3.753,2725.3,2724.7,5.38194342]
[1748518027611,7.42233464,2725.3,2724.7,5.38194342]
[1748518027814,7.42233464,2725.3,2724.7,3.67001811]
[1748518028051,3.753,2725.3,2724.8,3.66996116]
[1748518028655,3.753,2725.3,2724.6,3.81728437]
[1748518028796,3.753,2725.3,2724.8,3.66996848]
[1748518029425,3.753,2725.3,2724.7,3.67005695]
[1748518029857,3.753,2725.3,2724.7,5.41879108]
[1748518030060,3.753,2725.3,2724.7,3.67005695]
[1748518030771,7.42234475,2725.3,2724.7,3.67005695]
[1748518032125,7.42234475,2725.3,2724.4,8.0]
[1748518032126,1.0097,2725.2,2724.4,8.0]
[1748518032325,3.6695901,2725.1,2724.4,11.67043953]
[1748518035626,3.752,2725.1,2724.8,3.66999412]
[1748518036946,3.752,2725.1,2724.8,10.0]
[1748518037278,3.752,2725.1,2724.9,3.66985163]
[1748518037495,3.752,2725.1,2724.8,3.66993122]
[1748518037996,3.752,2725.1,2724.8,13.66993122]
[1748518038178,3.752,2725.1,2724.8,3.66993122]
[1748518038347,0.977,2725.2,2724.8,3.66993122]
[1748518038348,3.752,2725.0,2724.8,3.66993122]
[1748518038548,1.0311,2725.3,2724.8,10.52222388]
[1748518038745,3.752,2725.2,2725.0,3.669712]
[1748518039048,3.752,2725.2,2725.0,3.66972004]
[1748518039259,3.752,2725.2,2724.9,3.66982315]
[1748518039439,3.752,2725.1,2724.8,4.19220189]
[1748518039767,3.752,2725.1,2725.0,3.66972477]
[1748518040287,3.752,2725.1,2724.9,0.41922019]
[1748518040460,0.977,2725.5,2725.1,10.0]
[1748518040680,3.752,2725.4,2725.2,3.66936552]
[1748518041194,3.752,2725.4,2725.3,3.6693208]
[1748518041690,3.752,2725.4,2725.2,3.66938862]
[1748518043070,3.752,2725.4,2725.1,10.0]
[1748518043549,3.752,2725.4,2725.0,3.66968796]
[1748518044175,3.752,2725.4,2725.1,3.66958172]
[1748518044692,3.752,2725.4,2724.9,9.78849911]
[1748518044853,3.752,2725.3,2725.2,3.6693248]
[1748518045058,3.752,2725.3,2725.1,3.71904722]
[1748518045312,3.752,2725.3,2725.2,3.66945545]
[1748518046180,3.752,2725.3,2725.1,0.0495]
[1748518046380,3.752,2725.3,2725.1,1.49815615]
[1748518046969,3.752,2725.3,2725.2,3.66945545]
[1748518047281,3.752,2725.3,2725.1,5.16767787]
[1748518047466,4.8513,2725.3,2725.0,3.66970843]
[1748518047983,4.8513,2725.3,2724.8,3.66994717]
[1748518048368,4.8513,2725.3,2724.7,3.71960657]
[1748518048570,4.8513,2725.3,2724.9,3.66984062]
[1748518048816,4.8513,2725.3,2724.9,3.66985471]
[1748518049359,4.8513,2725.3,2725.0,3.66969809]
[1748518049597,4.8513,2725.3,2724.8,3.66995824]
[1748518049893,4.8513,2725.3,2724.8,3.6699638]
[1748518050395,3.752,2725.3,2724.8,3.6699638]
[1748518050613,3.752,2725.3,2725.0,3.66969831]
[1748518050991,4.728,2725.3,2725.0,3.66969831]
[1748518051924,4.728,2725.3,2724.9,3.66979006]
[1748518052477,4.728,2725.3,2725.0,3.66967602]
[1748518052731,1.1248,2725.6,2725.0,0.03669636]
[1748518053026,0.976,2725.3,2724.9,1.78849911]
[1748518053410,0.976,2725.3,2725.0,3.66971114]
[1748518053584,0.976,2725.3,2724.9,1.78849911]
[1748518053585,0.976,2725.3,2724.9,5.45829799]
[1748518053787,0.976,2725.3,2725.0,3.66969304]
[1748518054304,0.976,2725.3,2724.9,1.78849911]
[1748518054820,0.976,2725.3,2725.0,3.66970386]
[1748518055544,1.0408,2725.2,2724.9,11.78849911]
[1748518055836,3.751,2725.1,2724.8,3.66992344]
[1748518056192,3.751,2725.1,2724.6,8.0]
[1748518056393,3.751,2725.1,2724.7,3.67011618]
[1748518057201,3.751,2725.1,2724.7,13.67011618]
[1748518057528,1.1411,2724.9,2724.4,3.67053132]
[1748518057689,1.1411,2724.9,2724.4,3.67046017]
[1748518058630,4.81097152,2724.9,2724.3,3.67060838]
[1748518058841,2.45863205,2724.9,2724.1,1.90371693]
[1748518059137,1.1411,2724.9,2724.4,3.67050482]
[1748518059489,4.81099082,2724.9,2724.3,3.67060274]
[1748518059691,1.1411,2724.9,2724.3,3.67060274]
[1748518059904,3.67047469,2724.5,2724.1,0.05]
[1748518060258,3.66972477,2725.0,2724.1,0.05]
[1748518060259,1.1411,2724.3,2724.1,0.05]
[1748518060524,3.751,2724.2,2724.1,0.05]
[1748518061295,3.751,2724.2,2724.1,3.72093719]
[1748518065528,0.977,2724.3,2724.2,8.0]
[1748518065728,4.728,2724.3,2724.2,3.67070527]
[1748518065930,4.728,2724.3,2724.2,11.67070527]
[1748518066816,5.8026,2724.3,2724.2,8.0]
[1748518066994,5.8026,2724.3,2724.2,11.67080243]
[1748518067189,5.8026,2724.3,2724.2,8.0]
[1748518067434,5.8026,2724.3,2724.2,11.67080243]
[1748518068139,5.8026,2724.3,2724.2,8.0]
[1748518068557,6.38286,2724.3,2724.2,8.0]
[1748518069032,6.38286,2724.3,2724.1,0.05]
[1748518069238,3.66996015,2724.9,2724.1,0.08671161]
[1748518069239,3.751,2724.6,2724.1,0.08671161]
[1748518069442,3.751,2724.6,2724.1,0.05]
[1748518069614,3.751,2724.6,2724.4,3.67040245]
[1748518069810,3.751,2724.6,2724.4,3.67045735]
[1748518070114,1.1401,2724.8,2724.6,3.67015228]
[1748518070312,1.1401,2724.8,2724.5,3.67039823]
[1748518070511,1.1401,2724.8,2724.6,3.67020346]
[1748518070798,4.728,2724.7,2724.6,3.67020346]
[1748518071311,0.976,2724.7,2724.3,8.0]
[1748518071517,4.727,2724.7,2724.1,8.05]
[1748518071717,4.727,2724.7,2724.1,9.40589753]
[1748518072662,4.727,2724.7,2724.5,3.67027063]
[1748518073171,4.727,2724.7,2724.6,3.67026352]
[1748518073506,4.727,2724.7,2724.5,3.67039664]
[1748518074358,4.727,2724.7,2724.3,3.67065482]
[1748518074587,5.31371,2724.7,2724.4,8.0]
[1748518074867,1.1414,2724.6,2724.4,3.67053036]
[1748518075431,1.1414,2724.6,2724.3,11.67060257]
[1748518075797,1.1414,2724.6,2724.1,8.05]
[1748518075798,1.786911,2724.6,2724.1,8.05]
[1748518075950,1.786911,2724.6,2724.2,3.67077187]
[1748518077178,1.786911,2724.6,2724.3,3.67065092]
[1748518078049,1.786911,2724.6,2724.4,3.67040893]
[1748518078447,3.751,2724.5,2724.4,3.67040893]
[1748518078644,3.751,2724.5,2724.1,0.05]
[1748518078645,3.751,2724.5,2724.3,3.67064083]
[1748518081386,3.751,2724.5,2724.1,3.7209236]
[1748518081387,1.0957,2724.4,2724.1,0.05]
[1748518081585,3.67062962,2724.4,2724.1,0.05]
[1748518081738,1.83046296,2724.3,2724.1,0.05]
[1748518081951,4.41285849,2724.3,2724.1,0.05]
[1748518082158,1.04,2724.2,2724.1,0.05]
[1748518084060,1.04,2724.2,2723.7,3.62012843]
[1748518084324,3.751,2724.1,2723.8,3.67126938]
[1748518084615,3.751,2724.1,2723.7,3.67141241]
[1748518084759,3.751,2724.1,2723.7,3.67147605]
[1748518084959,3.751,2724.1,2723.7,0.36714761]
[1748518084960,3.751,2724.0,2723.7,0.36714761]
[1748518085274,3.751,2724.0,2723.9,3.67113415]
[1748518085577,3.751,2724.0,2723.8,3.67127316]
[1748518087508,3.751,2724.0,2723.9,3.67120672]
[1748518087682,3.751,2724.0,2723.8,3.67127329]
[1748518088022,3.751,2724.0,2723.9,3.67120672]
[1748518089062,3.751,2724.0,2723.7,3.67143706]
[1748518089063,3.751,2724.0,2723.8,3.67127914]
[1748518089797,3.751,2724.0,2723.9,3.67120672]
[1748518090373,0.976,2724.2,2724.0,3.67101113]
[1748518090565,3.751,2724.1,2723.9,3.67113452]
[1748518090764,0.5,2724.6,2723.9,3.67116386]
[1748518090964,3.751,2724.5,2723.9,3.67116386]
[1748518091261,1.476,2724.6,2724.2,3.67068671]
[1748518091485,3.751,2724.5,2723.9,8.0]
[1748518091792,3.751,2724.5,2724.2,3.67070835]
[1748518091995,3.751,2724.5,2724.3,3.67065216]
[1748518093198,3.751,2724.5,2724.2,3.67074659]
[1748518093799,3.75,2724.4,2724.2,3.67074659]
[1748518094000,3.75,2724.4,2724.3,3.67066769]
[1748518094203,0.5,2724.6,2724.3,3.67059865]
[1748518094679,3.75,2724.5,2724.3,3.67059865]
[1748518094882,3.75,2724.5,2724.2,3.6707351]
[1748518095318,0.5,2724.6,2724.2,3.6707351]
[1748518095513,3.75,2724.5,2724.2,3.6707351]
[1748518095820,3.75,2724.4,2724.2,3.6707351]
[1748518096021,0.5,2724.6,2724.0,0.69309439]
[1748518096222,3.75,2724.3,2724.2,3.67069284]
[1748518096428,0.5,2724.6,2724.2,3.67069284]
[1748518096594,4.25,2724.6,2724.3,3.6706044]
[1748518097691,4.25,2724.6,2724.3,3.67066705]
[1748518099124,4.25,2724.6,2724.2,3.67073689]
[1748518099632,4.25,2724.6,2724.0,3.67101883]
[1748518099827,4.25,2724.6,2724.2,3.67077458]
[1748518100218,4.25,2724.6,2724.2,3.67068089]
[1748518100514,4.88492,2724.6,2724.3,3.67064405]
[1748518101711,4.88492,2724.6,2724.4,3.67051345]
[1748518102325,4.88492,2724.6,2723.7,1.85016589]
[1748518102326,4.88492,2724.6,2724.5,3.67039823]
[1748518103345,0.5,2724.6,2724.5,3.67039823]
[1748518103549,4.25,2724.6,2724.4,3.67046263]
[1748518104151,3.75,2724.5,2724.4,3.67046263]
[1748518104471,0.5,2724.6,2724.2,8.0]
[1748518104766,1.0899,2724.4,2723.7,1.85222399]
[1748518104981,0.48399,2724.3,2723.8,3.67133387]
[1748518105118,1.0899,2724.2,2723.9,3.6711882]
[1748518105459,1.0899,2724.2,2724.0,3.67107195]
[1748518105460,3.75,2724.1,2724.0,3.67107195]
[1748518107617,1.0899,2724.2,2724.0,3.67107195]
[1748518107816,0.975,2724.2,2724.1,3.67093719]
[1748518108127,4.724,2724.2,2724.1,3.67093719]
[1748518108536,4.724,2724.2,2723.9,3.67116975]
[1748518109046,4.724,2724.2,2724.1,3.67093719]
[1748518111037,4.724,2724.2,2723.6,11.67156671]
[1748518111038,1.0925,2724.5,2723.6,8.0]
[1748518111238,4.724,2724.4,2724.2,3.67068007]
[1748518111442,0.975,2724.4,2724.3,3.67066769]
[1748518111639,4.724,2724.4,2724.3,3.67066769]
[1748518111838,1.0925,2724.5,2724.4,3.67053296]
[1748518112070,5.8165,2724.5,2724.4,3.67053296]
[1748518112620,1.0925,2724.5,2724.3,3.67058033]
[1748518112823,3.749,2724.4,2724.3,3.67066769]
[1748518114151,0.5,2724.6,2724.5,3.67039823]
[1748518114347,0.5,2724.6,2724.5,4.40449029]
[1748518114679,0.5,2724.6,2724.5,14.1929894]
[1748518115026,0.5,2724.6,2724.5,21.1411644]
[1748518115227,0.5,2724.6,2724.5,13.17887695]
[1748518115587,0.5,2724.6,2724.5,16.91249209]
[1748518115788,0.5,2724.6,2724.5,17.44091383]
[1748518116211,1.2234,2725.9,2724.5,14.3205156]
[1748518116414,1.2234,2725.9,2724.9,1.78849911]
[1748518116415,0.975,2725.8,2724.9,1.78849911]
[1748518116553,4.724,2725.8,2724.9,1.78849911]
[1748518116753,4.724,2725.8,2725.3,3.66928713]
[1748518116993,4.724,2725.8,2725.4,3.66917928]
[1748518116994,0.96159944,2725.7,2725.4,3.66917928]
[1748518117488,3.749,2725.6,2725.5,3.66905155]
[1748518117788,3.749,2725.6,2725.4,3.66909563]
[1748518117972,3.749,2725.6,2725.0,3.66972477]
[1748518117973,3.749,2725.6,2725.0,3.66960021]
[1748518118180,4.6844282,2725.6,2724.7,2.33849911]
[1748518118351,4.6844282,2725.6,2725.0,8.0]
[1748518118552,4.6844282,2725.6,2725.0,3.66967887]
[1748518118553,0.9354282,2725.6,2725.0,3.66967887]
[1748518118752,0.975,2725.8,2725.5,3.66892687]
[1748518118991,3.749,2725.7,2725.5,3.66892687]
[1748518119198,3.749,2725.7,2725.2,3.66932093]
[1748518119407,3.749,2725.6,2725.2,3.66932093]
[1748518120383,3.749,2725.6,2725.3,3.66929708]
[1748518120565,0.3749,2725.5,2725.3,3.66929708]
[1748518121193,0.3749,2725.5,2725.4,3.66918617]
[1748518121399,0.3749,2725.5,2725.1,3.6695901]
[1748518121599,0.3749,2725.5,2725.3,3.66929839]
[1748518122864,0.3749,2725.5,2725.2,11.6693661]
[1748518123906,1.4745,2725.5,2725.2,11.6693661]
[1748518126558,3.748,2725.4,2725.2,11.6693661]
[1748518127907,3.748,2725.4,2725.1,11.66955739]
[1748518128111,3.748,2725.4,2725.2,3.66943309]
[1748518129418,3.748,2725.4,2725.2,8.0]
[1748518129619,3.748,2725.4,2725.0,3.66967873]
[1748518129817,3.748,2725.4,2725.2,3.66937256]
[1748518130515,4.27025,2725.4,2725.0,8.37126516]
[1748518130700,4.27025,2725.4,2725.1,8.0]
[1748518131275,4.27025,2725.4,2725.1,3.66958168]
[1748518131620,4.27025,2725.4,2725.2,3.66944145]
[1748518131981,4.27025,2725.4,2725.3,8.0]
[1748518133190,4.27025,2725.4,2725.2,8.0]
[1748518133679,0.536985,2725.3,2725.1,3.66953239]
[1748518133878,3.748,2725.4,2725.0,12.0297728]
[1748518134197,3.748,2725.4,2725.1,3.66958929]
[1748518134400,3.748,2725.4,2725.1,8.0]
[1748518135814,1.1595,2725.3,2724.8,3.66997158]
[1748518136042,0.85767493,2725.2,2724.9,8.0]
[1748518136265,3.747,2725.1,2724.9,8.0]
[1748518136546,3.747,2725.1,2724.3,0.1168]
[1748518136754,2.1785,2725.0,2724.6,3.67021657]
[1748518137058,3.22376545,2725.0,2724.7,11.67012699]
[1748518137254,3.22376545,2725.0,2724.7,3.67012699]
[1748518137407,3.22376545,2725.0,2724.8,8.0]
[1748518138444,3.22376545,2725.0,2724.8,3.66995954]
[1748518138621,3.747,2724.9,2724.8,3.66995954]
[1748518139025,3.747,2724.9,2724.8,11.66995954]
[1748518139439,4.33955,2724.9,2724.8,8.0]
[1748518142112,4.33955,2724.9,2724.1,0.65955396]
[1748518142312,4.33955,2724.9,2724.4,3.67046338]
[1748518142912,4.33955,2724.9,2724.1,0.48039902]
[1748518143208,1.2078,2724.8,2724.3,11.67064699]
[1748518143440,0.44986367,2724.7,2724.3,11.67064699]
[1748518143637,3.747,2724.6,2724.3,11.67064699]
[1748518144731,3.747,2724.6,2724.5,8.0]
[1748518145546,3.747,2724.6,2724.2,3.67079123]
[1748518145547,3.747,2724.6,2724.3,11.67061248]
[1748518146830,3.747,2724.6,2724.5,8.0]
[1748518153269,3.747,2724.6,2724.3,3.67060283]
[1748518153612,3.747,2724.6,2724.2,3.67079361]
[1748518154457,3.747,2724.6,2724.4,8.0]
[1748518154657,3.747,2724.6,2724.2,3.67074386]
[1748518154834,3.747,2724.6,2724.3,8.0]
[1748518155861,3.747,2724.6,2724.3,3.67066617]
[1748518156962,3.747,2724.6,2724.2,3.67080243]
[1748518157121,3.746,2724.5,2724.3,3.67066769]
[1748518157328,1.2078,2724.8,2724.2,8.0]
[1748518157533,3.746,2724.7,2724.6,8.0]
[1748518158038,3.746,2724.7,2724.5,11.67034891]
[1748518159449,3.746,2724.7,2724.5,3.67034891]
[1748518159751,1.2078,2724.8,2724.5,3.67034891]
[1748518159957,3.746,2724.7,2724.5,3.67034891]
[1748518160484,3.746,2724.6,2724.5,3.67033886]
[1748518161268,4.82562723,2725.1,2724.5,3.67033886]
[1748518161470,0.974,2724.8,2724.5,11.67033886]
[1748518161641,3.746,2724.7,2724.5,11.67033886]
[1748518162744,3.746,2724.6,2724.5,11.67033886]
[1748518163370,3.746,2724.6,2724.5,8.0]
[1748518170366,4.719,2724.6,2724.4,3.67052183]
[1748518171354,4.719,2724.6,2724.0,7.5474569]
[1748518171755,4.719,2724.6,2724.4,3.67045632]
[1748518172162,1.076,2724.9,2724.0,11.21850566]
[1748518172370,0.973,2724.7,2724.4,3.67042718]
[1748518176005,0.973,2724.7,2724.3,8.0]
[1748518176283,0.973,2724.7,2724.4,3.67052474]
[1748518178393,1.084,2724.6,2724.1,0.35769947]
[1748518178573,3.745,2724.5,2724.3,8.0]
[1748518180098,3.745,2724.5,2724.2,8.0]
[1748518180284,3.745,2724.5,2724.2,3.670796]
[1748518180461,3.745,2724.5,2724.1,8.36747879]
[1748518180785,3.745,2724.5,2724.3,8.0]
[1748518181389,4.2725723,2724.5,2724.1,0.36747879]
[1748518181756,4.2725723,2724.5,2724.1,8.36747879]
[1748518182200,4.2725723,2724.5,2724.1,4.03840996]
[1748518182360,4.2725723,2724.5,2724.1,0.36747879]
[1748518182557,0.90268815,2724.4,2724.1,0.36747879]
[1748518186576,0.90268815,2724.4,2723.9,3.67113735]
[1748518186775,4.57324345,2724.4,2723.9,3.67113735]
[1748518186980,1.1192,2724.3,2723.9,3.67119943]
[1748518187175,3.745,2724.2,2723.9,3.67119943]
[1748518187817,3.745,2724.2,2723.8,3.67125379]
[1748518188216,3.745,2724.2,2723.7,13.52570172]
[1748518188640,3.745,2724.2,2723.8,3.67133345]
[1748518188806,3.745,2724.2,2723.7,13.52569735]
[1748518189007,3.745,2724.2,2723.8,3.67133044]
[1748518189795,3.745,2724.2,2723.9,3.6711846]
[1748518191438,3.745,2724.2,2723.7,8.37532685]
[1748518191636,3.745,2724.2,2723.8,3.6713415]
[1748518192140,3.745,2724.2,2724.0,8.0]
[1748518196221,3.745,2724.1,2724.0,8.0]
[1748518196736,3.745,2724.1,2724.0,3.67107195]
[1748518197030,3.745,2724.1,2724.0,8.0]
[1748518199135,3.745,2724.1,2723.8,11.67128014]
[1748518199311,3.745,2724.1,2723.8,3.6713307]
[1748518199513,3.745,2724.1,2723.9,8.0]
[1748518200624,3.744,2724.0,2723.9,3.67120115]
[1748518200841,3.744,2724.0,2723.8,8.0]
[1748518200995,3.744,2724.0,2723.8,11.67124632]
[1748518202149,3.744,2724.0,2723.9,3.67120672]
[1748518203049,3.744,2724.0,2723.9,11.67120672]
[1748518203511,3.744,2724.0,2723.9,8.0]
[1748518203717,3.744,2724.0,2723.9,11.67120672]
[1748518204356,3.744,2724.0,2723.9,8.0]
[1748518208676,3.744,2724.0,2723.7,0.37532685]
[1748518208860,4.8947,2724.0,2723.7,0.37532685]
[1748518209066,4.8947,2724.0,2723.6,3.67160614]
[1748518209645,3.744,2724.0,2723.6,3.67160614]
[1748518209904,3.744,2724.0,2723.6,13.67160614]
[1748518210197,3.744,2723.9,2723.8,11.67127793]
[1748518210763,3.744,2723.9,2723.8,8.0]
[1748518211088,3.744,2723.9,2723.8,11.6713415]
[1748518211456,3.744,2723.9,2723.8,8.0]
[1748518212286,3.744,2723.9,2723.8,11.6713415]
[1748518212491,3.744,2723.9,2723.8,8.0]
[1748518213590,3.744,2723.9,2723.6,13.04455904]
[1748518213805,3.744,2723.9,2723.7,3.67145931]
[1748518215503,3.744,2723.9,2723.6,13.67155309]
[1748518215707,3.67174591,2723.5,2723.4,0.36153591]
[1748518216006,4.9159,2723.5,2723.0,13.67241131]
[1748518216308,4.9159,2723.5,2723.0,10.0]
[1748518216309,0.972,2723.4,2723.0,10.0]
[1748518216485,0.972,2723.4,2723.0,3.67236411]
[1748518216808,0.972,2723.4,2723.0,10.0]
[1748518217015,0.972,2723.4,2722.9,3.70730429]
[1748518217303,0.972,2723.4,2723.1,3.72226488]
[1748518218515,0.972,2723.4,2723.2,3.67214433]
[1748518218816,0.972,2723.4,2723.3,3.67201556]
[1748518219111,0.972,2723.4,2723.2,3.67202951]
[1748518219328,0.972,2723.5,2723.4,3.67178261]
[1748518219626,4.716,2723.5,2723.4,3.67178261]
[1748518219930,0.972,2723.5,2723.4,3.67178261]
[1748518220215,4.716,2723.5,2723.3,3.67194767]
[1748518220390,4.716,2723.5,2723.4,3.67188073]
[1748518221982,1.1046,2723.9,2723.5,3.67171703]
[1748518222198,4.716,2723.8,2723.5,3.67171703]
[1748518222508,4.716,2723.7,2723.5,3.67169271]
[1748518222899,0.972,2723.7,2723.6,3.6716111]
[1748518223224,4.716,2723.7,2723.3,3.67193052]
[1748518223401,6.67962929,2723.7,2723.2,3.67208623]
[1748518223619,9.51242223,2723.7,2723.2,8.0]
[1748518223925,5.8409,2723.7,2723.2,3.67212271]
[1748518224078,5.8409,2723.7,2723.1,8.42147875]
[1748518224079,5.8409,2723.7,2723.3,3.67201193]
[1748518225410,5.8409,2723.7,2723.4,3.67186706]
[1748518225711,5.8409,2723.7,2723.2,3.67214031]
[1748518225712,1.1249,2723.7,2723.5,3.67172805]
[1748518226032,0.35000463,2724.3,2723.7,3.6714763]
[1748518226033,0.971,2723.8,2723.7,3.6714763]
[1748518226242,4.715,2723.8,2723.7,3.6714763]
[1748518226732,0.971,2724.1,2723.8,3.67131227]
[1748518227036,3.744,2724.0,2723.8,3.67131227]
[1748518227172,3.744,2724.0,2723.1,2.27294758]
[1748518227173,1.0976,2723.9,2723.1,2.27294758]
[1748518227377,4.2155,2724.0,2723.1,2.27294758]
[1748518227378,1.1531,2723.6,2723.1,0.42147875]
[1748518227715,3.743,2723.5,2723.1,12.09373957]
[1748518227914,3.743,2723.5,2723.2,3.67215033]
[1748518228121,3.67124634,2723.9,2723.1,8.42147875]
[1748518228122,1.1245,2723.9,2723.1,8.49507875]
[1748518228285,3.67149069,2723.7,2723.2,0.84950787]
[1748518228496,4.7957272,2723.9,2723.1,8.49507875]
[1748518228497,1.1245,2723.5,2723.1,8.42147875]
[1748518229170,1.1245,2723.5,2723.1,12.09368441]
[1748518229365,1.1245,2723.5,2723.2,3.67214188]
[1748518229545,1.1245,2723.5,2723.2,3.67212252]
[1748518231363,3.743,2723.6,2723.3,3.67200073]
[1748518231566,3.743,2723.6,2723.5,3.67174591]
[1748518231884,3.743,2723.6,2723.4,3.67182524]
[1748518232027,3.744,2723.5,2723.4,3.67182524]
[1748518233154,4.78920833,2723.9,2723.3,3.74555085]
[1748518233464,4.715,2723.8,2723.3,3.67195085]
[1748518235074,8.38636326,2723.8,2723.2,3.67208248]
[1748518235473,4.715,2723.8,2723.1,8.49507875]
[1748518235630,4.715,2723.8,2723.4,3.67183314]
[1748518236025,4.715,2723.8,2723.3,3.67197742]
[1748518236231,4.715,2723.8,2723.5,3.67169884]
[1748518236440,0.971,2723.8,2723.5,3.67166645]
[1748518236639,0.971,2723.8,2723.4,3.67187333]
[1748518236640,3.743,2723.7,2723.4,3.67187333]
[1748518236880,3.743,2723.7,2723.6,3.6716111]
[1748518238386,0.971,2724.0,2723.7,3.67138103]
[1748518238588,0.971,2724.0,2723.8,3.6713415]
[1748518238589,3.743,2723.9,2723.8,3.6713415]
[1748518238757,3.743,2723.9,2723.5,0.0736]
[1748518238957,3.743,2723.9,2723.8,3.6713415]
[1748518239365,0.971,2724.0,2723.9,3.67120672]
[1748518239563,4.714,2724.0,2723.6,0.41126149]
[1748518239761,4.714,2724.0,2723.7,3.67144807]
[1748518239960,4.714,2724.0,2723.9,3.67120672]
[1748518240162,0.971,2724.3,2724.0,3.67098608]
[1748518240496,2.106,2724.6,2724.3,3.67062971]
[1748518240660,2.106,2724.6,2724.1,3.67093655]
[1748518240661,3.743,2724.5,2724.2,3.67073777]
[1748518240846,2.106,2724.6,2724.2,3.67073777]
[1748518240847,3.743,2724.4,2724.2,3.67073777]
[1748518241370,3.743,2724.4,2724.1,3.67088264]
[1748518242993,2.106,2724.6,2724.0,8.0]
[1748518243157,3.743,2724.3,2724.1,3.67081812]
[1748518243353,2.106,2724.6,2723.9,0.0736]
[1748518243581,3.743,2724.5,2724.0,3.67107195]
[1748518243786,3.743,2724.5,2724.1,8.0]
[1748518244508,3.743,2724.5,2724.1,3.67081713]